Cogmind - Beta 16 @@@ ROGUE MODE // 2025.12.31 @ 02:04:45 Player: Zaros426 Result: Destroyed by NV-ACZ(R) with Subdweller Shrapnel Launcher Performance ------------- Evolutions (0) 0 Regions Visited (3) 600 Robots Destroyed (41) 205 Value Destroyed (703) 703 Prototype IDs (0) 0 Alien Tech Used (0) 0 Bonus (0) 0 TOTAL SCORE: 1508 Bonus ------- None Cogmind --------- Core Integrity 0/250 Matter 269/300 Energy 265/265 System Corruption 0% Temperature Cool (24) Movement Treading (160) Location -10/Subcaves Parts ------- > --- POWER (1) -------- Improved Ion Engine > --- PROPULSION (2) --- Light Treads Light Treads > --- UTILITY (2) ------ Large Storage Unit Improved Targeting Computer > --- WEAPON (2) ------- Heavy Assault Rifle Grenade Launcher > --- INVENTORY (15) --- Light Treads Light Treads Combat Airjet Cargo Storage Unit High-capacity Battery (250) Large Matter Pod (150) Seismic Detector Light Armor Plating Heavy Assault Rifle Datajack Mining Laser Plasma Cutter Peak State ------------ > --- POWER ------------ Improved Ion Engine > --- PROPULSION ------- Light Treads Light Treads > --- UTILITY ---------- Large Storage Unit Improved Targeting Computer > --- WEAPON ----------- EM Pulse Gun Heavy Assault Rifle > --- INVENTORY -------- Light Treads Light Treads Combat Airjet Cargo Storage Unit High-capacity Battery Large Matter Pod Seismic Detector Light Armor Plating Heavy Assault Rifle Grenade Launcher Datajack Mining Laser Plasma Cutter [Rating: 12] Favorites ----------- Power Ion Engine Engine Ion Engine Propulsion Light Treads Treads Light Treads Utility Improved Targeting Computer Device Seismic Detector Storage Large Storage Unit Processor Improved Targeting Computer Weapon EM Pulse Gun Energy Gun EM Pulse Gun Ballistic Gun Light Assault Rifle Launcher Grenade Launcher Special Weapon Mining Laser Build | -11 -10 -10 -10 ------- Run | Yrd Mat Min Sub Slots Evolved . | . . . . Power . | . . . . Propulsion . | . . . . Utility . | . . . . Weapon . | . . . . Parts Attached 21 | 9 7 3 2 Power 3 | 1 1 1 . Engine 3 | 1 1 1 . Core . | . . . . Reactor . | . . . . Propulsion 3 | 2 . 1 . Treads 3 | 2 . 1 . Leg . | . . . . Wheel . | . . . . Hover . | . . . . Flight . | . . . . Utility 7 | 4 3 . . Device 3 | 3 . . . Storage 3 | 1 2 . . Processor 1 | . 1 . . Hackware . | . . . . Protection . | . . . . Artifact . | . . . . Weapon 8 | 2 3 1 2 Energy Gun 3 | 1 2 . . Energy Cannon . | . . . . Ballistic Gun 2 | 1 . . 1 Ballistic Cannon . | . . . . Launcher 2 | . 1 . 1 Special Weapon 1 | . . 1 . Impact Weapon . | . . . . Slashing Weapon . | . . . . Piercing Weapon . | . . . . Special Melee Weapon . | . . . . Unidentified Prototypes . | . . . . Parts Lost 2 | . . . 2 Power . | . . . . Propulsion . | . . . . Utility . | . . . . Weapon 2 | . . . 2 Highest Loss Streak 2 | . . . 2 To Critical Strikes . | . . . . Average Backups 10 | 3 9 13 13 Power . | . . . . Propulsion 1 | . . 2 3 Utility 4 | 1 4 5 5 Weapon 3 | 1 2 4 3 Tool/Special . | . . . . Unused Backups 21 | 1 6 4 10 Power . | . . . . Propulsion 3 | . . . 3 Utility 10 | . 4 2 4 Weapon 6 | 1 2 2 1 Tool/Special 2 | . . . 2 Average Slot Usage (%) 99 | . 99 100 97 Engine 14 | . 14 14 14 Treads 27 | . 27 28 28 Device 2 | . 5 . . Storage 14 | . 14 14 14 Processor 11 | . 8 14 14 Energy Gun 22 | . 18 27 24 Ballistic Gun 2 | . 5 . 1 Launcher 2 | . 3 . . Peak Build Rating 12 | 7 9 11 12 Average Rating 8 | 6 8 10 10 On Entrance 6 | . 7 9 11 Avg Prop Armor Cover (%) . | . . . . Naked Turns . | . . . . Heaviest Build 33 | 12 30 31 33 Greatest Support 40 | 40 40 40 40 Greatest Overweight (x) . | . . . . Average Overweight (x) . | . . . . Largest Inventory Capacity 15 | 8 15 15 15 Average Capacity 12 | 7 11 15 15 Most Carried 15 | 5 14 15 15 Average Carried 11 | 3 10 14 14 Final Capacity 15 | 8 15 15 15 Final Carried 15 | 4 14 15 13 Class Distribution -------------------- 100% | Mutant Dominant Class ---------------- Mutant | -10/Materials Mutant | -10/Mines Mutant | -10/Subcaves Resources | -11 -10 -10 -10 ----------- Run | Yrd Mat Min Sub Matter Collected 725 | 332 354 20 19 Remotely . | . . . . Salvage Created 1143 | 250 710 183 . Parts 92 | 29 52 11 . Haulers Intercepted 2 | . 2 . . Recyclers Shooed 3 | . 2 1 . Parts Field Recycled . | . . . . Retrieved Matter . | . . . . Parts Self-Destructed . | . . . . Prevented . | . . . . Parts Restored . | . . . . Kills | -11 -10 -10 -10 ------- Run | Yrd Mat Min Sub Combat Hostiles Destroyed 17 | . 15 2 . Guns 12 | . 10 2 . AOE 5 | . 5 . . Classes Destroyed 9 | 3 6 . . Worker 5 | 2 2 1 . Builder 1 | . 1 . . Tunneler 9 | 8 . 1 . Hauler 2 | . 2 . . Recycler 3 | 1 1 1 . Operator 1 | . 1 . . Watcher 3 | . 3 . . Swarmer 4 | . 4 . . Grunt 13 | . 11 2 . Best Kill Streak 6 | 2 6 2 . Combat Bots Only 4 | . 4 2 . Max Kills in Single Turn 2 | 2 1 1 . Gunslinging . | . . . . Exploded 1 | . 1 . . Melee . | . . . . Uniques/NPCs Destroyed . | . . . . Combat | -11 -10 -10 -10 -------- Run | Yrd Mat Min Sub Hostile Shots Fired 78 | . 52 11 15 Missed 21 | . 13 1 7 Hits 57 | . 39 10 8 Projectile 57 | . 39 10 8 AOE 4 | . . . 4 Critical Strikes 1 | . 1 . . Damage Taken 1001 | . 505 131 365 Core 252 | . 90 27 135 Absorbed by Shields . | . . . . Regen/Repaired (Parts) 93 | . 93 . . Core Remaining (%) 100 | 100 . . . Volleys Fired 130 | 42 66 19 3 Largest 2 | 2 2 2 2 Hottest 100 | 70 80 100 63 Shots Fired 244 | 84 124 31 5 Gun 227 | 84 115 24 4 Cannon . | . . . . Launcher 10 | . 9 . 1 Special 7 | . . 7 . Kinetic 78 | 42 34 . 2 Thermal 96 | 42 47 7 . Explosive 10 | . 9 . 1 Electromagnetic 60 | . 34 24 2 Robot Hit Streak 10 | 10 9 9 5 Robot Miss Streak 4 | 2 4 2 1 Penetration Max . | . . . . Secondary Targets 3 | . 2 1 . Max Gunslinging Chain 1 | . 1 1 . Shots Hit Robots 148 | 52 78 15 3 Core Hits 73 | 18 43 8 4 Critical Kills 1 | 1 . . . Critical Parts Destroyed . | . . . . Critical Strikes 13 | 6 5 1 1 Burn 9 | 5 4 . . Destroy 1 | 1 . . . Corrupt 3 | . 1 1 1 Melee Attacks . | . . . . Impact . | . . . . Slashing . | . . . . Piercing . | . . . . Sneak Attacks . | . . . . Combat Hostiles . | . . . . Follow-up Attacks . | . . . . Damage Inflicted 2124 | 520 1282 219 103 Guns 1592 | 520 824 201 47 Cannons . | . . . . Explosions 514 | . 458 . 56 Melee . | . . . . Ramming 18 | . . 18 . Kinetic 461 | 246 191 . 24 Thermal 676 | 274 402 . . Explosive 467 | . 411 . 56 Electromagnetic 502 | . 278 201 23 Impact . | . . . . Slashing . | . . . . Piercing . | . . . . Highest Corruption . | . . . . Average Corruption . | . . . . Corruption Purged . | . . . . Corruption Blocked . | . . . . Overload Shots . | . . . . Overflow Damage . | . . . . Projectiles . | . . . . Explosions . | . . . . Melee . | . . . . Knockbacks . | . . . . Impact . | . . . . Kinetic . | . . . . Secondary . | . . . . Self-Inflicted Damage 35 | . 35 . . Shots 3 | . 3 . . Rammed 4 | . . 4 . Targets Rammed 5 | . . 5 . Kicked . | . . . . Crushed 1 | . . 1 . Highest Temperature 355 | 130 355 201 . Average Temperature 70 | 41 92 58 . Received Heat Transfer 357 | . 231 75 51 Effects 3 | . 3 . . Shutdowns 1 | . 1 . . Interference 2 | . 2 . . Siege Activations . | . . . . Martial Activations . | . . . . Shielding Activations . | . . . . Robots Disrupted . | . . . . Combat Hostiles . | . . . . Robots Corrupted . | . . . . Combat Hostiles . | . . . . Parts Fried 1 | . 1 . . Impact Corruptions . | . . . . Robots Melted . | . . . . Combat Hostiles . | . . . . Parts Melted 3 | 1 2 . . Heat Transferred 2566 | 1184 1382 . . Parts Sabotaged . | . . . . Parts Stolen . | . . . . Parts Stripped . | . . . . Power Chain Reactions 1 | . 1 . . Alert | -11 -10 -10 -10 ------- Run | Yrd Mat Min Sub Maximum Alert Level 1 | . 1 . . Low Security (%) 84 | 100 67 100 . Level 1 15 | . 32 . . Level 2 . | . . . . Level 3 . | . . . . Level 4 . | . . . . Level 5 . | . . . . High Security . | . . . . Max Security . | . . . . Peak Influence 245 | 10 245 77 . Initial 72 | . . 72 . Average 69 | 1 142 7 . Influence Increases 760 | 55 640 65 . Destroy 0b10 Robot/C 340 | . 300 40 . Destroy 0b10 Robot/NC 120 | 55 50 15 . Destroy Leader 90 | . 80 10 . Successful Hack 17 | . 17 . . Select Force Hacks 60 | . 60 . . Disable Machine 15 | . 15 . . Destroy Structure 58 | . 58 . . Lose Combat Pursuer 60 | . 60 . . Influence Decreases 760 | 55 453 252 . Entered New Map 115 | . . 115 . Time Decay 645 | 55 453 137 . Squads Dispatched 3 | . 3 . . Investigation 3 | . 3 . . Extermination . | . . . . Reinforcement . | . . . . Assault . | . . . . Garrison . | . . . . Intercept . | . . . . Searches Triggered . | . . . . Construction Impeded . | . . . . Haulers Reinforced . | . . . . Active Scanning Responses . | . . . . Cargo Convoy Interrupts . | . . . . Stealth | -11 -10 -10 -10 --------- Run | Yrd Mat Min Sub Distress Signals 1 | . 1 . . Communications Jammed . | . . . . Distress Signals . | . . . . Times Spotted 26 | . 20 2 4 Peak Tracking Total 4 | . 3 2 4 Tactical Retreats 2 | . 2 . . Traps | -11 -10 -10 -10 ------- Run | Yrd Mat Min Sub Traps Triggered 2 | . 1 . 1 Indirectly . | . . . . Trap Hack Attempts . | . . . . Triggered . | . . . . Disarmed . | . . . . Reprogrammed . | . . . . Reused . | . . . . Traps Extracted . | . . . . Installed . | . . . . Triggered . | . . . . Machines | -11 -10 -10 -10 ---------- Run | Yrd Mat Min Sub Machines Disabled 1 | . 1 . . Max in Single Turn 1 | . 1 . . Machines Repaired . | . . . . Machines Dismantled . | . . . . Machines Sabotaged . | . . . . Overloaded Fab Kills . | . . . . Hacking | -11 -10 -10 -10 --------- Run | Yrd Mat Min Sub Machines Accessed 9 | . 9 . . Terminals 6 | . 6 . . Fabricators . | . . . . Repair Stations 1 | . 1 . . Recycling Units 2 | . 2 . . Scanalyzers . | . . . . Garrison Access . | . . . . Total Hacks 26 | . 26 . . Successful 14 | . 14 . . Failed 12 | . 12 . . Catastrophic . | . . . . Database Lockouts . | . . . . Manual 17 | . 17 . . Terminals 22 | . 22 . . Fabricators . | . . . . Repair Stations 2 | . 2 . . Recycling Units 2 | . 2 . . Scanalyzers . | . . . . Garrison Access . | . . . . Terminal Hacks 4 | . 4 . . Locate Traps 4 | . 4 . . Fabricator Hacks . | . . . . Repair Station Hacks 2 | . 2 . . Scan Component 1 | . 1 . . Repair 1 | . 1 . . Recycling Unit Hacks . | . . . . Scanalyzer . | . . . . Garrison Access Hacks . | . . . . Unauthorized Hacks 7 | . 7 . . Terminals 5 | . 5 . . Skim 5 | . 5 . . Fabricators . | . . . . Repair Stations . | . . . . Recycling Units 2 | . 2 . . Tunnel 2 | . 2 . . Scanalyzers . | . . . . Garrison Access . | . . . . Data Cores Recovered . | . . . . Used . | . . . . Hacking Detections 7 | . 7 . . Full Trace Events . | . . . . Feedback Events . | . . . . Feedback Blocked . | . . . . Robot Schematics Acquired . | . . . . Robots Built . | . . . . Authchips . | . . . . Time . | . . . . Total Robot Build Rating . | . . . . Part Schematics Acquired . | . . . . Parts Built . | . . . . Authchips . | . . . . Time . | . . . . Total Part Build Rating . | . . . . Part Studies Acquired . | . . . . Parts Repaired 1 | . 1 . . Time 26 | . 26 . . Parts Recycled . | . . . . Recycled Matter . | . . . . Retrieved Matter . | . . . . Retrieved Components . | . . . . Parts Scanalyzed . | . . . . Part Schematics Acquired . | . . . . Parts Damaged . | . . . . Bothacking | -11 -10 -10 -10 ------------ Run | Yrd Mat Min Sub Used RIF Installer . | . . . . Robots Hacked . | . . . . Non-combat . | . . . . Combat . | . . . . Robot Hacks Applied . | . . . . Relay Couplers Released . | . . . . Fabnet Peak Effective % . | . . . . Robots Rewired . | . . . . Allies Hacked . | . . . . Hacks Repelled . | . . . . Allies | -11 -10 -10 -10 -------- Run | Yrd Mat Min Sub Total Allies 3 | . . 3 . Largest Group 3 | . . 3 3 Highest-Rated Group 40 | . . 40 40 Highest-Rated Ally 16 | . . 16 16 Total Orders . | . . . . Ally Attacks 3 | . . . 3 Total Damage 36 | . . . 36 Kills . | . . . . Allies Corrupted . | . . . . Allies Melted . | . . . . Intel | -11 -10 -10 -10 ------- Run | Yrd Mat Min Sub Active Infowar (turns) 1032 | 371 661 . . Seismic 1032 | 371 661 . . Robot Analysis Total . | . . . . Derelict Logs Recovered 2 | . . 2 . Drone Launches . | . . . . Drone Recoveries . | . . . . Exploration | -11 -10 -10 -10 ------------- Run | Yrd Mat Min Sub Turns Passed 3576 | 456 1601 1405 114 Spaces Moved 1876 | 201 818 796 61 Core 2 | 2 . . . Treads 1874 | 199 818 796 61 Legs . | . . . . Wheels . | . . . . Hover . | . . . . Flight . | . . . . Fastest Speed 50 | 50 160 160 160 Average Speed 159 | 158 160 160 160 Slowest Speed 160 | 160 160 160 160 Overloaded Moves . | . . . . Propulsion Burnouts . | . . . . Robots Hopped . | . . . . Potential Cave-ins . | . . . . Cave-ins Triggered . | . . . . Exploration Rate (%) 54 | 10 100 99 8 Regions Visited 3 Branch Regions 2 Pre-discovered Areas 3 | . 2 1 . Known Exits Taken . | . . . . Unknown Exits Taken 3 | 1 1 1 . Scrap Searched 1 | . . 1 . Spaces Dug . | . . . . Terrain Destroyed 63 | . 59 1 3 Melee . | . . . . Projectile 1 | . . 1 . AOE 62 | . 59 . 3 Terrain Rammed . | . . . . Walls Destroyed . | . . . . Machines Disabled . | . . . . Actions | -11 -10 -10 -10 --------- Run | Yrd Mat Min Sub Total 2212 | 259 995 885 73 Wait 129 | . 77 46 6 Move 1873 | 200 817 795 61 Hop . | . . . . Pick Up 29 | 5 16 8 . Fast Attach 9 | 7 2 . . Attach 2 | . . . 2 Detach . | . . . . Swap 12 | 2 6 3 1 Drop 23 | 3 11 9 . Fire 130 | 42 66 19 3 Melee . | . . . . Ram . | . . . . Kick . | . . . . Crush 5 | . . 5 . Escape Stasis . | . . . . Rewire . | . . . . Trap . | . . . . Miscellaneous . | . . . . Route ------- -11/Scrapyard -10/Materials (discovered 5 exits: [*Mat x3] / [*Min] / [*Sub]) -10/Mines (discovered 4 exits: [*Mat x2] / [*Exi] / [*Sub]) -10/Subcaves (discovered 1 exit: Mat) History --------- Turn | Location | Event 61 | -11/Scrapyard | Discovered new exit (range 15) 457 | -11/Scrapyard | Entered Materials 458 | -10/Materials | Build established: Mutant 775 | -10/Materials | Discovered new exit (range 7) 998 | -10/Materials | Discovered new exit (range 10) 1184 | -10/Materials | Discovered new exit (range 15) 1489 | -10/Materials | Repaired Lgt. Treads 1568 | -10/Materials | Discovered new exit (range 14) 1671 | -10/Materials | Learned 4 Subcaves zone layouts 1727 | -10/Materials | Discovered new exit (range 9) 1738 | -10/Materials | Learned Storage security intel 1797 | -10/Materials | Learned Storage interactive machine intel 1879 | -10/Materials | Learned Storage security intel 1906 | -10/Materials | Learned location of 1 exit from Recycling 1943 | -10/Materials | Learned location of 2 exits from Materials 2047 | -10/Materials | Learned location of 1 exit from Recycling 2058 | -10/Materials | Entered Mines 2079 | -10/Mines | Met a Derelict bent on vengeance 2288 | -10/Mines | Learned Materials emergency access door positions 2362 | -10/Mines | Joined a pair of Derelicts in attacking an 0b10 outpost 2513 | -10/Mines | Deemed a non-threat by the Exiles lab entrance 2513 | -10/Mines | Discovered new exit (range 5) 2540 | -10/Mines | Discovered new exit (range 10) 2567 | -10/Mines | Assisted by bots powering up and referring to "LRC-V3" 2578 | -10/Mines | Assembled infested the area 2666 | -10/Mines | Met 8R-AWN 2857 | -10/Mines | Received a Rocket Launcher from a helpful Derelict 2911 | -10/Mines | Discovered new exit (range 10) 3454 | -10/Mines | Discovered new exit (range 3) 3463 | -10/Mines | Entered Subcaves 3463 | -10/Subcaves | Accompanied by 3 allies 3464 | -10/Subcaves | Approached by a straggling Scientist 3464 | -10/Subcaves | Identified exit to Materials 3515 | -10/Subcaves | Core integrity fell below 50% 3565 | -10/Subcaves | Core integrity fell below 20% 3577 | -10/Subcaves | Destroyed by NV-ACZ(R) with Subdweller Shrapnel Launcher Last Messages --------------- 03464_ 2W-U1J(c): "Thank the algorithms! I was beginning to lose hope I'd never make it past all the Subs lurking out here." Loading 4 Subcaves zones... 03467_ 2W-U1J(c): "Hey, let me tag along and I can get us both out of this nasty situation. At least I think I can... The group I got separated from was talking about a shortcut back to the UFD." 2W-U1J(c): "We're getting close, I can feel it." 03514_ Triggered Shrapnel Trap. 03514_ An expanding cloud of shrapnel blasts out in all directions. 03514_ Mercenary 1a destroyed. 03519_ Trooper 1b triggered Piercing Trap. 03519_ Spikes shoot up from the floor. 03519_ Trooper 1b destroyed. 03519_ Acquired 19 matter. 03535_ Subatomizers dissect the Aluminum Leg. 03548_ Trooper 1a triggered Shrapnel Trap. 03548_ An expanding cloud of shrapnel blasts out in all directions. 03548_ EM Pulse Gun destroyed. 2W-U1J(c): "I think it's somewhere south of here" 03571_ Trooper 1a suffers critical hit (Burn). 03573_ Trooper 1a destroyed. 03573_ EM Pulse Gun destroyed. Map ----- +----------------------------------------------------+ | ?????????????????????????????????????????????????? | | ?????????????????????????????????????????????????? | | ?????????????????????????????????????????????????? | | ?????????????????????????????????????????????????? | | ?????????????????????????????????????????????????? | | ?????????????????????????????????????????????????? | | ?????????????????????????????????????????????????? | | ?????????????????????????????????????????????????? | | ?????????????????????????????????????????????????? | | ?????????????????????????????????????????????????? | | ?????????????????????????????????????????????????? | | ??????????????????##??????#??????????????????????? | | ??????????????????# ????? #?????????????????????? | | ?????????????????? ???## ??? ??????????????????? | | ?????????????????? ??? ? # ????????????????? | | ???????????????###? ### """?" ???????????????? | | ??????????##?###;;## # #?""""""???????????????? | | ???????#### ## ; ; gg R## ????????????????? | | ???????? R ""??????????????? | | ????????# ?? """"""??????????????? | | ????????# ##?#;; = ;#""""""?????????????? | | ??????### # ###; ; % ; """#????????????? | | ??????# # ; #?????????????? | | ??????# #?????????????? | | ??????## ##" ### #?????????????? | | ???????### "##### @ # #??????????????? | | ????????#"" ## ### ;; #??????????????? | | ????????# " ## ;; ;# #??????????????? | | ????????##" #### ;;#?????????????????? | | ?????????# #??# # "????????????????? | | ?????????# ##??# ;; #? " ??????????????? | | ?????????## ^ #???# ###?????"#??????????????? | | ??????????## #???# ????????????????????????? | | ???????????### ##??##????????????????????????? | | ??????####???### #????????????????????????????? | | ##???## #????## #????????????????????????????? | | ##### #????# #????????????????????????????? | | ## #??### ##????????????????????????????? | | ##### # ##?????????????????????????????? | | ## #??????????????????????????????? | | ?# ##?????????????????????????????? | | ?## ## = ###???????????????????????????? | | ## #"" ![ #???????????????????????????? | | ## #"" [! #???????????????????????????? | | ##" *%=##???????????????????????????? | | ##^ ""###????????????????????????????? | | ### ########"""###??????????????????????????????? | | #?####??????#####????????????????????????????????? | | ?????????????????????????????????????????????????? | | ?????????????????????????????????????????????????? | +----------------------------------------------------+ Best States ------------- Heat Dissipation 25 Energy Generation 12 Energy Capacity 265 Matter Stores 300 Matter Capacity 300 Sight Range 16 Terrain Scan Density 10 Evasion (%) 40 Targeting Accuracy 6 Recoil Reduction 2 Item Schematics ----------------- None Robot Schematics ------------------ None Fabricated ------------ Nothing Repaired ---------- Lgt. Treads | 33% | -10/Materials Studied --------- None Alien Tech Used ----------------- None Achievements -------------- None Challenges ------------ None Game ------ Seed JunkBottomlessTether Manual? 0 Play Time 00:18:57 Cumulative 63.9 hours Start 2025.12.28 @ 23:39:35 End 2025.12.31 @ 02:04:45 Sessions 3 Manual Loads 0 Difficulty Rogue Special Mode None Game No. 26 Rogue 26 Adventurer 0 Explorer 0 Win Type - Total 0 Types 0/0/0/0/0/0/0/0/0/0 Lore% 50 Gallery% 55 Achievement% 50 Wizard Run 0 Options --------- Layout 0 ASCII 0 Keyboard 0 Movement Mouse Keybinds 0 Fullscreen 1 Font 24/Smallcaps Map View 183x50 Zoom Use 0% Tactical HUD 1 Map Filters NONE Filters NONE Steam 1 RUN: d3ba67b8-e1a8-4c1b-896f-da4cb0a1796a